bitfinex-derivatives/quotes_ETHF0:USTF0_20241004
["timestamp","ask_amount","ask_price","bid_price","bid_amount"]
[1728035376548,0.4204,2378.8,2378.7,0.4204]
[1728035376750,0.42039,2378.9,2378.8,0.42039]
[1728035377344,0.42039,2378.9,2378.8,0.4206]
[1728035378050,0.83249,2378.9,2378.8,0.4206]
[1728035378448,0.83249,2378.9,2378.8,0.841]
[1728035379441,0.83249,2378.9,2378.8,0.4206]
[1728035379743,0.83249,2378.9,2378.8,0.841]
[1728035379945,0.83249,2378.9,2378.8,0.4206]
[1728035384646,0.83249,2378.9,2378.8,0.841]
[1728035385649,0.83249,2378.9,2378.8,0.4206]
[1728035387656,2.34249,2378.9,2378.8,0.841]
[1728035387854,2.34249,2378.9,2378.8,0.4206]
[1728035389647,3.2078,2379.1,2379.0,0.42036]
[1728035389853,3.2078,2379.4,2378.9,5.7132]
[1728035390056,0.42028,2379.5,2379.4,0.42028]
[1728035390257,6.9833613,2379.6,2379.4,0.42028]
[1728035390460,5.8936213,2379.6,2379.3,1.51]
[1728035390758,5.8936213,2379.6,2379.4,0.42028]
[1728035391159,0.42026,2379.6,2379.4,0.42028]
[1728035392360,1.93026,2379.6,2379.4,0.42028]
[1728035393057,0.42027,2379.5,2379.4,0.42028]
[1728035398563,0.42029,2379.4,2379.3,0.4203]
[1728035398769,0.42028,2379.5,2379.4,0.42028]
[1728035399064,0.42028,2379.5,2379.2,0.8029]
[1728035399065,0.4211,2379.5,2379.2,0.8029]
[1728035399469,0.4203,2379.4,2379.3,0.4203]
[1728035399666,3.28,2379.4,2379.2,0.8029]
[1728035399868,3.28,2379.4,2379.0,0.098]
[1728035400063,3.70033,2379.2,2379.1,0.42033]
[1728035400259,0.3918,2379.3,2378.9,0.8307]
[1728035400463,0.4203,2379.4,2379.3,0.42031]
[1728035400765,0.42033,2379.2,2379.1,0.42033]
[1728035401167,4.33075,2379.4,2378.9,0.8307]
[1728035401374,0.42035,2379.1,2379.0,0.42035]
[1728035401569,0.42036,2379.0,2378.9,0.8307]
[1728035401770,0.42036,2379.0,2378.9,1.25108]
[1728035401974,3.70036,2379.0,2378.9,1.25108]
[1728035402569,3.70036,2379.0,2378.9,0.4032]
[1728035402867,3.70036,2379.0,2378.9,0.42038]
[1728035403774,3.28,2379.0,2378.9,0.42038]
[1728035404278,0.42033,2379.2,2379.1,0.42034]
[1728035404964,0.42035,2379.1,2379.0,0.42036]
[1728035405971,3.70032,2379.3,2379.2,0.42033]
[1728035406168,0.42032,2379.3,2379.2,0.42033]
[1728035412673,3.6808,2379.4,2379.0,0.8161]
[1728035412878,3.7003,2379.4,2379.3,0.42031]
[1728035415181,3.28,2379.4,2379.3,0.42031]
[1728035415381,0.42025,2379.6,2379.5,0.42027]
[1728035419782,0.42027,2379.5,2379.4,0.82299]
[1728035421285,0.42029,2379.4,2379.3,0.3989]
[1728035421485,0.42031,2379.3,2379.2,0.3882]
[1728035421690,1.23851,2379.3,2379.2,0.3882]
[1728035423482,4.51851,2379.3,2379.2,0.3882]
[1728035428586,1.23851,2379.3,2379.2,0.3882]
[1728035429695,1.23851,2379.3,2379.2,0.80853]
[1728035430200,1.23851,2379.3,2379.2,0.3882]
[1728035430491,1.23851,2379.3,2379.2,0.80853]
[1728035431389,1.23851,2379.3,2378.9,3.2078]
[1728035431589,0.42038,2378.9,2378.8,0.098]
[1728035431802,0.42038,2378.9,2378.5,0.5055]
[1728035432097,0.42038,2378.9,2378.7,0.42041]
[1728035432286,4.523,2379.0,2378.6,0.42042]
[1728035432494,0.42039,2378.9,2378.6,0.42043]
[1728035432795,0.4204,2378.8,2378.6,0.42043]
[1728035433098,0.4072,2378.9,2378.5,0.4075]
[1728035433596,0.42043,2378.6,2378.5,0.4075]
[1728035434491,0.42048,2378.3,2378.2,1.19831639]
[1728035434696,0.42048,2378.3,2378.2,1.10031639]
[1728035435295,0.80808,2378.3,2378.2,1.10031639]
[1728035435492,0.3876,2378.3,2378.2,1.10031639]
[1728035435902,0.42048,2378.3,2378.2,1.10031639]
[1728035437201,0.42048,2378.4,2378.2,1.10031639]
[1728035438002,0.42048,2378.4,2378.3,0.4113]
[1728035439300,0.42048,2378.4,2378.2,1.10031639]
[1728035439301,0.42048,2378.3,2378.2,1.10031639]
[1728035445106,7.94665,2378.5,2378.2,1.10031639]
[1728035445107,6.8955,2378.5,2378.2,1.10031639]
[1728035445307,0.42047,2378.4,2378.3,0.3892]
[1728035445509,1.93047,2378.4,2378.3,0.7887]
[1728035446904,0.42047,2378.4,2378.3,0.7887]
[1728035447113,1.93047,2378.4,2378.3,0.7887]
[1728035447304,0.42046,2378.5,2378.3,1.20918]
[1728035447609,1.93044,2378.6,2378.4,0.42046]
[1728035448610,0.42044,2378.6,2378.4,0.42046]
[1728035448911,4.25867,2379.1,2378.5,4.204]
[1728035449209,4.25867,2379.1,2378.7,0.42041]
[1728035449210,1.93039,2378.9,2378.7,0.42041]
[1728035449411,1.93039,2378.9,2378.8,0.4255]
[1728035451201,6.76498,2378.9,2378.3,0.098]
[1728035451401,0.42046,2378.5,2378.4,0.3963]
[1728035451809,1.93046,2378.5,2378.4,0.3963]
[1728035454104,1.51,2378.5,2377.9,3.3058]
[1728035454300,1.51,2378.1,2378.0,1.24252]
[1728035454813,0.42049,2378.3,2378.2,0.42049]
[1728035454814,1.51,2378.3,2378.2,0.42049]
[1728035455609,3.62826,2378.5,2378.3,0.42048]
[1728035455810,1.93046,2378.5,2378.4,0.4017]
[1728035456010,1.93046,2378.5,2378.4,0.82217]
[1728035458824,1.93046,2378.5,2378.4,0.4017]
[1728035460318,0.42046,2378.5,2378.4,0.82217]
[1728035461225,0.42046,2378.5,2378.4,1.24237]
[1728035463124,0.42044,2378.6,2378.5,0.42044]
[1728035463526,0.42045,2378.5,2378.4,1.24236]
[1728035464324,1.93045,2378.5,2378.4,1.24236]
[1728035468933,1.93045,2378.5,2378.4,0.8219]
[1728035471029,1.51,2378.5,2378.3,0.3996]
[1728035471237,0.42048,2378.3,2378.2,0.4131]
[1728035474648,0.4205,2378.2,2378.1,0.3954]
[1728035476157,0.4205,2378.2,2378.1,0.81592]
[1728035485159,5.7148,2378.2,2377.7,3.3058]
[1728035485361,1.51,2377.8,2377.5,0.4045]
[1728035485565,0.42061,2377.6,2377.5,0.4045]
[1728035485760,3.2078,2378.2,2377.5,0.4045]
[1728035485963,0.42056,2377.9,2377.8,0.42057]
[1728035486269,1.51,2377.9,2377.6,0.42059]
[1728035486563,0.42059,2377.7,2377.6,0.42059]
[1728035486969,1.9016,2377.8,2377.6,0.42059]
[1728035487164,2.32219,2377.8,2377.6,0.42059]
[1728035487363,1.9016,2377.8,2377.5,0.82512]
[1728035487670,0.4206,2377.7,2377.5,0.82512]
[1728035487870,1.93061,2377.6,2377.5,0.4045]
[1728035488561,5.7164,2377.6,2377.4,4.30591552]
[1728035488761,1.93063,2377.5,2377.4,1.09811552]
[1728035489465,0.42063,2377.5,2377.4,1.09811552]
[1728035489661,5.8528,2377.7,2377.4,1.09811552]
[1728035489870,0.42062,2377.6,2377.4,1.51875552]
[1728035490360,0.42063,2377.5,2377.4,1.51875552]
[1728035491054,0.42063,2377.5,2377.4,1.09811552]
[1728035492167,0.42063,2377.5,2377.3,2.4665916]
[1728035492168,0.42063,2377.5,2377.3,0.81916]
[1728035492464,5.7693,2377.7,2377.3,0.3985]
[1728035492671,0.42062,2377.6,2377.4,0.42064]
[1728035493261,0.42063,2377.5,2377.3,0.81915]
[1728035493763,0.42062,2377.6,2377.4,0.42064]
[1728035494669,0.42063,2377.5,2377.4,0.42064]
[1728035494871,4.7634,2377.7,2377.5,0.42062]
[1728035495066,4.7634,2377.7,2377.6,0.4053]
[1728035495573,5.8528,2377.7,2377.3,0.42065]
[1728035495759,1.93063,2377.5,2377.3,0.83205]
[1728035496466,0.4219,2377.4,2377.3,0.83205]
[1728035498370,0.84254,2377.4,2377.3,0.4114]
[1728035498672,0.4219,2377.4,2377.3,0.4114]
[1728035498873,0.4219,2377.4,2377.3,0.83206]
[1728035499072,2.34991,2377.6,2377.4,0.42063]
[1728035499374,0.4206,2377.7,2377.5,0.42062]
[1728035499575,0.4206,2377.7,2377.5,0.82082]
[1728035499777,0.4206,2377.7,2377.6,0.3938]
[1728035501362,0.4206,2377.7,2377.6,0.8184]
[1728035502764,0.4206,2377.7,2377.6,0.3938]
[1728035503572,1.9306,2377.7,2377.6,0.3938]
[1728035503776,0.42061,2377.6,2377.5,0.4002]
[1728035505068,0.42061,2377.6,2376.9,0.098]
[1728035505069,6.07,2377.6,2376.9,0.098]
[1728035505264,6.07,2377.6,2376.5,0.843]
[1728035505265,3.2078,2377.0,2376.5,0.843]
[1728035505570,1.51,2376.7,2376.4,4.0145]
[1728035506169,1.51,2376.7,2376.2,1.82694194]
[1728035506170,0.42081,2376.5,2376.2,1.82694194]
[1728035506369,1.51,2376.6,2376.2,1.82694194]
[1728035506675,1.93079,2376.6,2376.2,2.24778194]
[1728035507373,0.42081,2376.5,2376.2,2.24778194]
[1728035508072,0.42082,2376.4,2376.2,0.42084]
[1728035508274,0.42082,2376.4,2376.1,0.42087]
[1728035508474,0.42082,2376.4,2376.0,3.6231]
[1728035508976,3.28,2376.7,2376.0,3.6231]
[1728035508977,0.42082,2376.5,2376.2,0.42085]
[1728035509182,0.42082,2376.4,2376.2,0.42085]
[1728035509380,1.167,2376.6,2376.2,0.42085]
[1728035509581,0.42083,2376.4,2376.2,0.42085]
[1728035510481,0.42083,2376.4,2376.0,3.6231]
[1728035510682,0.42083,2376.4,2376.2,0.42084]
[1728035511083,0.42081,2376.5,2376.3,1.22333]
[1728035511274,0.42082,2376.4,2376.3,1.22333]
[1728035511470,0.42082,2376.5,2376.3,1.22333]
[1728035511673,0.42082,2376.4,2376.3,1.22333]
[1728035513485,0.42081,2376.5,2376.3,1.22333]
[1728035513789,0.42082,2376.4,2376.3,1.22333]
[1728035514381,0.42082,2376.4,2376.3,0.4076]
[1728035515981,0.42082,2376.4,2376.3,0.82844]
[1728035517083,3.2078,2376.6,2376.4,0.42082]
[1728035517282,0.4208,2376.5,2376.4,0.42082]
[1728035518488,3.62859,2376.6,2376.5,0.4208]
[1728035520183,0.42078,2376.7,2376.3,0.4076]
[1728035520383,0.42078,2376.7,2376.6,0.42079]
[1728035521089,0.42072,2377.0,2376.9,0.42073]
[1728035521289,3.28,2377.1,2376.7,0.3939]
[1728035521591,0.42075,2376.8,2376.7,0.3939]
[1728035522090,0.42076,2376.8,2376.5,0.42079]
[1728035522390,0.42078,2376.7,2376.5,1.21669]
[1728035525291,4.0373,2376.8,2376.5,0.7959]
[1728035525586,0.42079,2376.6,2376.5,0.7959]
[1728035525790,0.42077,2376.7,2376.5,1.21669]
[1728035526594,0.42079,2376.6,2376.5,0.7959]
[1728035526792,0.42079,2376.6,2376.5,1.2167]
[1728035526987,0.42077,2376.7,2376.5,1.2167]
[1728035527193,4.0373,2376.8,2376.5,0.7959]
[1728035527488,0.42078,2376.7,2376.5,1.2167]
[1728035527696,0.42079,2376.6,2376.5,0.7959]
[1728035528284,1.52,2376.7,2376.5,1.2167]
[1728035528488,0.42079,2376.6,2376.5,0.3939]
[1728035530481,4.208,2376.6,2376.1,0.098]
[1728035530684,0.42084,2376.3,2376.2,3.63]
[1728035531289,0.4209,2376.0,2375.8,0.098]
[1728035531490,3.2078,2376.1,2375.8,0.42092]
[1728035531691,3.2078,2376.1,2375.7,0.8211]
[1728035531692,4.7278,2376.1,2375.9,0.4209]
[1728035531992,3.2078,2376.4,2376.0,1.52]
[1728035532192,0.91966,2376.8,2376.5,0.42079]
[1728035532497,1.9209,2376.8,2376.6,0.4037]
[1728035532796,2.34166,2376.8,2376.6,0.4037]
[1728035532991,2.34166,2376.8,2376.6,0.82448]
[1728035533197,0.42077,2376.7,2376.6,0.4037]
[1728035533394,1.94076,2376.8,2376.6,0.8305]
[1728035533695,1.52,2376.8,2376.6,1.25128]
[1728035533997,2.3613,2377.1,2376.8,0.42074]
[1728035534691,1.9406,2377.1,2376.8,0.42074]
[1728035534996,0.42072,2377.0,2376.8,0.42074]
[1728035535893,2.3613,2377.1,2376.9,0.42073]
[1728035536103,2.3613,2377.1,2377.0,0.4282]
[1728035536795,1.52,2377.1,2377.0,0.4282]
[1728035537000,1.9407,2377.1,2377.0,0.4282]
[1728035537692,3.2078,2377.2,2377.0,0.4282]
[1728035537895,3.2078,2377.2,2377.1,0.4207]
[1728035538099,3.2078,2377.2,2377.1,0.8189]
[1728035539302,4.7278,2377.2,2377.0,0.4282]
[1728035539507,5.14848,2377.2,2377.0,0.84891]
[1728035540202,0.4207,2377.1,2377.0,0.4282]
[1728035540499,4.7278,2377.2,2377.0,0.4282]
[1728035540709,0.42073,2376.9,2376.8,3.2078]
[1728035540999,1.94072,2377.0,2376.8,3.2078]
[1728035541201,1.52,2377.0,2376.8,3.2078]
[1728035541390,0.42073,2376.9,2376.8,3.2078]
[1728035541598,2.76493,2377.0,2376.8,3.2078]
[1728035541798,2.3442,2377.0,2376.8,3.2078]
[1728035541999,0.42073,2376.9,2376.8,3.2078]
[1728035542500,2.76493,2377.0,2376.8,3.2078]
[1728035543806,2.76493,2377.0,2376.8,3.62855]
[1728035544005,2.3442,2377.0,2376.8,3.2078]
[1728035544205,0.42073,2376.9,2376.8,3.2078]
[1728035544605,0.42077,2376.7,2376.5,0.84559]
[1728035544906,1.94078,2376.7,2376.5,0.4248]
[1728035545307,0.42079,2376.6,2376.5,0.4248]
[1728035546000,3.2078,2376.9,2376.5,0.4248]
[1728035546200,0.42075,2376.8,2376.6,0.42078]
[1728035546402,0.42076,2376.8,2376.5,0.84559]
[1728035546808,0.42076,2376.8,2376.2,3.3058]
[1728035546809,6.4878,2376.6,2376.2,3.72665]
[1728035547100,6.4878,2376.6,2376.2,3.62865]
[1728035547101,1.23191,2376.5,2376.2,3.62865]
[1728035547503,1.23191,2376.5,2376.3,0.42084]
[1728035548203,0.42089,2376.1,2375.8,0.098]
[1728035548407,0.4209,2376.0,2375.8,0.42092]
[1728035548607,0.4047,2376.0,2375.7,0.3893]
[1728035548807,0.42088,2376.1,2375.9,0.42091]
[1728035549105,0.42088,2376.1,2375.9,0.4209]
[1728035549706,0.42088,2376.1,2376.0,0.42089]
[1728035550897,0.42088,2376.1,2375.9,0.4209]
[1728035551103,3.6847,2376.2,2375.9,0.4209]
[1728035551303,0.42091,2375.9,2375.8,0.4053]
[1728035553411,4.0946,2376.0,2375.8,0.82622]
[1728035553709,1.239,2376.3,2375.8,0.4053]
[1728035553903,0.42088,2376.1,2375.9,0.42091]
[1728035556806,0.4209,2376.0,2375.8,0.82621]
[1728035557615,0.42091,2375.9,2375.8,0.4053]
[1728035558208,0.42093,2375.8,2375.7,0.3893]
[1728035558513,3.2078,2376.1,2375.7,0.81023]
[1728035558709,3.2078,2376.1,2375.7,0.3893]
[1728035558909,0.4209,2376.0,2375.8,0.42093]
[1728035559713,3.62869,2376.1,2375.8,0.42093]
[1728035559912,0.42089,2376.0,2375.8,0.42093]
[1728035560228,3.62869,2376.1,2375.8,0.42093]
[1728035560419,0.4209,2376.0,2375.8,0.42093]
[1728035561419,0.4209,2376.0,2375.7,0.3893]
[1728035561620,0.4209,2376.0,2375.9,0.42091]
[1728035564517,3.2078,2376.1,2375.9,0.42091]
[1728035564912,3.2078,2376.1,2376.0,0.42089]
[1728035565118,0.5188,2376.6,2376.4,0.42081]
[1728035565319,1.2214,2376.7,2376.1,1.2037]
[1728035565520,1.64218,2376.7,2376.5,0.42079]
[1728035565728,1.23728,2376.7,2376.5,0.42079]
[1728035566025,1.23728,2376.7,2376.6,0.79]
[1728035567922,6.4878,2377.0,2376.6,0.79]
[1728035568226,6.4878,2377.0,2376.9,0.42073]
[1728035568227,3.2078,2377.0,2376.9,0.42073]
[1728035568430,1.14963,2377.4,2376.9,4.2072]
[1728035568431,3.62847,2377.3,2376.9,4.2072]
[1728035568631,3.2078,2377.3,2377.2,0.42068]
[1728035570525,3.2078,2377.3,2377.1,0.4256]
[1728035570731,3.2078,2377.3,2377.1,0.84628]
[1728035571130,0.42068,2377.2,2377.1,0.4256]
[1728035572330,3.2078,2377.3,2377.1,0.4256]
[1728035572630,3.62847,2377.3,2377.1,0.4256]
[1728035575428,3.2078,2377.3,2377.1,0.4256]
[1728035575630,3.2078,2377.3,2377.2,0.42068]
[1728035577034,3.2078,2377.3,2377.1,0.84628]
[1728035577623,3.2078,2377.3,2377.2,0.42068]
[1728035580134,3.70064,2377.4,2377.2,0.42068]
[1728035580332,0.4238,2377.6,2377.1,0.4256]
[1728035580333,3.28,2377.6,2377.1,0.4256]
[1728035580526,3.7175,2378.0,2377.3,3.28]
[1728035580835,3.7175,2378.0,2377.2,3.62848]
[1728035580836,3.2078,2378.0,2377.9,0.42056]
[1728035581039,3.2078,2378.0,2377.8,0.42056]
[1728035581336,3.62834,2378.0,2377.9,0.4018]
[1728035582034,3.62835,2378.0,2377.7,0.42059]
[1728035582235,3.62834,2378.0,2377.7,0.42059]
[1728035582729,6.4878,2378.0,2377.6,0.4018]
[1728035582929,3.62839,2377.7,2377.4,0.51864]
[1728035583128,0.42061,2377.6,2377.3,0.4227]
[1728035583434,0.42061,2377.6,2377.4,0.42064]
[1728035583435,0.4199,2377.6,2377.4,0.42064]
[1728035585039,0.4199,2377.6,2377.5,0.42063]
[1728035585433,0.8164,2377.9,2377.3,0.4227]
[1728035585632,1.65917,2377.9,2377.6,0.4206]
[1728035586044,0.42058,2377.8,2377.6,0.4206]
[1728035586340,1.65917,2377.9,2377.6,0.4206]
[1728035586938,1.2386,2377.9,2377.3,0.4227]
[1728035587339,0.42057,2377.8,2377.5,0.42061]
[1728035587835,1.65917,2377.9,2377.6,0.42061]
[1728035588040,0.42057,2377.8,2377.5,0.42061]
[1728035588344,1.2386,2377.9,2377.3,0.4227]
[1728035588534,0.42057,2377.8,2377.5,0.42061]
[1728035589046,0.42057,2377.8,2377.6,0.4103]
[1728035590140,0.42059,2377.7,2377.6,0.4103]
[1728035590345,2.29001,2377.9,2377.3,0.4227]
[1728035590537,2.29001,2377.9,2377.3,1.24186]
[1728035590538,0.42062,2377.6,2377.3,1.24186]
[1728035590731,0.42062,2377.6,2377.3,1.24185]
[1728035590732,0.3952,2377.5,2377.3,1.24185]
[1728035591643,0.3952,2377.5,2377.3,1.24184]
[1728035591943,0.4206,2377.7,2377.4,0.42064]
[1728035592140,0.8158,2377.7,2377.4,0.42064]
[1728035592851,0.3952,2377.7,2377.5,0.42062]
[1728035593339,0.8158,2377.7,2377.4,0.42063]
[1728035593737,0.8158,2377.7,2377.5,0.42063]
[1728035594543,0.8158,2377.7,2377.3,0.8212]
[1728035594743,0.8158,2377.7,2377.4,0.42064]
[1728035595440,0.8158,2377.7,2377.5,0.42062]
[1728035596338,0.8158,2377.7,2377.2,2.08209385]
[1728035596749,0.8158,2377.7,2377.5,0.42062]
[1728035597449,4.0236,2377.7,2377.5,0.42062]
[1728035597643,4.0236,2377.7,2377.0,10.7338]
[1728035597946,4.02359,2377.7,2377.5,0.42062]
[1728035598543,3.603,2377.7,2377.0,7.50095499]
[1728035598852,3.603,2377.7,2377.6,0.42061]
[1728035599546,3.603,2377.7,2377.0,5.55356567]
[1728035599745,3.603,2377.7,2377.6,0.42061]
[1728035600251,4.0236,2377.7,2377.5,0.42062]
[1728035602251,3.603,2377.7,2377.6,0.42061]
[1728035603751,3.2078,2377.7,2377.6,0.42061]
[1728035603952,3.2078,2377.7,2377.6,4.62621]
[1728035606754,0.82256,2377.9,2377.6,4.2056]
[1728035607049,0.82256,2377.9,2377.5,0.4097]
[1728035607050,0.82256,2377.9,2377.8,0.42057]
[1728035607448,0.82256,2377.9,2377.7,0.83627]
[1728035607648,0.82256,2377.9,2377.7,0.4157]
[1728035607949,0.82256,2377.9,2377.7,0.83628]
[1728035608152,0.402,2377.9,2377.8,0.42057]
[1728035608855,0.402,2377.9,2377.7,0.4157]
[1728035609154,0.82257,2377.9,2377.7,0.83629]
[1728035610456,0.82257,2377.9,2377.7,0.83628]
[1728035611146,0.402,2377.9,2377.8,0.42057]
[1728035611451,3.2078,2378.0,2377.9,0.42056]
[1728035613056,0.42056,2377.9,2377.7,0.83628]
[1728035613251,0.83046,2377.9,2377.7,0.83628]
[1728035614154,0.42057,2377.8,2377.7,0.83628]
[1728035614455,0.4099,2377.9,2377.8,0.42057]
[1728035614659,0.83046,2377.9,2377.8,0.42057]
[1728035616057,0.4099,2377.9,2377.8,0.42057]
[1728035616361,3.2078,2378.0,2377.9,0.42056]
[1728035617059,3.6002,2378.0,2377.9,0.42056]
[1728035622252,0.3999,2378.1,2378.0,0.42054]
[1728035622458,0.8081,2378.3,2378.2,0.4205]
[1728035622662,0.4097,2378.3,2378.2,0.4205]
[1728035623152,3.2078,2378.4,2378.3,0.42048]
[1728035623352,3.2078,2378.4,2378.3,1.93048]
[1728035623547,0.7998,2378.5,2378.1,1.0513]
[1728035623548,0.4014,2378.5,2378.4,0.42047]
[1728035624361,0.4014,2378.5,2378.4,0.84927]
[1728035626857,0.4014,2378.5,2378.4,0.4288]
[1728035627158,0.82185,2378.5,2378.4,0.4288]
[1728035627363,0.82185,2378.5,2378.3,0.82717]
[1728035627558,0.82185,2378.5,2378.3,0.4067]
[1728035627559,0.42047,2378.4,2378.3,0.4067]
[1728035627767,4.04037,2378.4,2378.1,0.8335]
[1728035627962,0.42049,2378.3,2378.1,0.8335]
[1728035628161,4.04038,2378.4,2378.1,0.8335]
[1728035628362,0.3943,2378.2,2378.1,0.8335]
[1728035628561,0.3943,2378.2,2378.1,0.4205]
[1728035629459,0.3943,2378.2,2378.0,0.413]
[1728035629656,0.3943,2378.2,2378.1,0.42052]
[1728035629855,1.05131,2378.1,2377.6,0.098]
[1728035630067,0.42061,2377.6,2377.4,0.83224]
[1728035631061,0.8122,2377.7,2377.4,0.4116]
[1728035631368,0.42061,2377.6,2377.5,0.42062]
[1728035632071,0.42062,2377.6,2377.4,0.83223]
[1728035632570,0.42062,2377.6,2377.4,0.83224]
[1728035632768,0.4083,2377.5,2377.4,0.83224]
[1728035635271,0.82893,2377.5,2377.4,0.83224]
[1728035635459,0.4083,2377.5,2377.4,0.83224]
[1728035636669,0.4083,2377.5,2377.4,0.42064]
[1728035641376,1.2328,2377.7,2377.6,0.42061]
[1728035642176,0.8122,2377.7,2377.6,0.42061]
[1728035642377,0.4252,2377.7,2377.6,0.42061]
[1728035642677,0.4252,2377.7,2377.6,1.23451]
[1728035643984,0.84579,2377.7,2377.6,1.23451]
[1728035644183,0.4252,2377.7,2377.6,1.23451]
[1728035644475,0.84579,2377.7,2377.6,0.81321]
[1728035644681,0.4252,2377.7,2377.6,0.81321]
[1728035644884,0.84579,2377.7,2377.6,0.3926]
[1728035645183,0.84579,2377.7,2377.5,0.82822]
[1728035646380,0.84579,2377.7,2377.5,0.4076]
[1728035646585,0.4252,2377.7,2377.5,0.4076]
[1728035646887,0.4252,2377.7,2377.4,0.42064]
[1728035646888,0.42061,2377.6,2377.4,0.42064]
[1728035647075,0.4252,2377.7,2377.6,0.42061]
[1728035650882,3.2078,2377.8,2377.7,0.42059]
[1728035651190,0.098,2378.1,2377.4,1.05159]
[1728035651191,0.3922,2378.0,2377.9,0.42056]
[1728035653586,0.3922,2378.0,2377.9,0.82656]
[1728035655182,0.3922,2378.0,2377.9,0.42056]
[1728035655581,0.81274,2378.0,2377.9,0.42056]
[1728035656084,0.3922,2378.0,2377.9,0.42056]
[1728035658588,0.81275,2378.0,2377.8,0.42057]
[1728035662789,0.3922,2378.0,2377.9,0.42056]
[1728035663189,0.3922,2378.0,2377.7,0.8503]
[1728035663390,0.81275,2378.0,2377.8,0.42056]
[1728035663598,0.81275,2378.0,2377.7,0.8503]
[1728035663785,0.3922,2378.0,2377.9,0.42056]
[1728035664696,3.2078,2378.1,2378.0,0.42054]
[1728035666095,0.8351,2378.2,2378.0,0.42054]
[1728035666495,0.8351,2378.2,2378.1,0.4002]
[1728035667499,0.42055,2378.0,2377.7,0.423]
[1728035667690,0.42055,2378.0,2377.9,0.42056]
[1728035667895,3.6946,2378.2,2377.9,0.42056]
[1728035668102,0.42053,2378.1,2377.9,0.42056]
[1728035668494,3.2078,2378.0,2377.9,0.42056]
[1728035669000,3.62833,2378.1,2377.9,0.42056]
[1728035669299,0.42055,2378.0,2377.8,0.4002]
[1728035669502,1.94055,2378.0,2377.8,0.82076]
[1728035669999,1.52,2378.0,2377.8,0.4002]
[1728035670199,0.4112,2377.9,2377.8,0.82077]
[1728035672890,3.62833,2378.1,2377.9,0.42056]
[1728035673096,4.03043,2378.1,2377.9,0.42056]
[1728035673799,0.42054,2378.0,2377.9,0.42056]
[1728035673999,4.03043,2378.1,2377.9,0.42056]
[1728035674805,0.82263,2378.1,2377.9,0.42056]
[1728035675206,3.6099,2378.1,2377.9,0.42056]
[1728035675407,0.42054,2378.0,2377.9,0.42056]
[1728035675808,4.03043,2378.1,2377.9,0.42056]
[1728035676203,4.03043,2378.1,2377.8,0.4002]
[1728035676410,4.03043,2378.1,2378.0,0.42054]
[1728035676913,4.03043,2378.1,2377.9,0.42054]
[1728035678600,3.2078,2378.1,2378.0,0.42054]
[1728035679401,3.2078,2378.1,2378.0,0.83594]
[1728035680209,3.62828,2378.4,2378.2,0.42049]
[1728035680410,3.6216,2378.4,2378.2,0.42049]
[1728035680713,4.04208,2378.4,2378.2,0.42049]
[1728035682110,0.4205,2378.3,2378.1,0.82942]
[1728035682308,5.1416,2378.4,2378.1,0.4089]
[1728035682506,5.1416,2378.4,2377.8,0.098]
[1728035682507,1.52,2378.2,2377.8,0.098]
[1728035682810,0.42054,2378.0,2377.9,0.42055]
[1728035683006,0.42054,2378.0,2377.7,0.8495]
[1728035683007,1.52,2378.0,2377.8,0.42057]
[1728035683303,0.3996,2377.9,2377.8,0.42057]
[1728035685616,4.01633,2378.1,2377.9,0.42055]
[1728035686008,4.01633,2378.1,2378.0,0.42054]
[1728035687010,3.5958,2378.1,2377.9,0.42055]
[1728035687216,0.4163,2378.0,2377.9,0.42055]
[1728035687714,0.83684,2378.0,2377.9,0.42055]
[1728035687918,0.4163,2378.0,2377.9,0.42055]
[1728035688124,0.4163,2378.0,2377.7,0.8495]
[1728035688320,0.82776,2377.9,2377.8,0.42057]
[1728035688613,4.6128,2377.9,2377.5,0.098]
[1728035688919,0.42066,2377.3,2377.2,1.19962731]
[1728035689109,3.2078,2377.3,2377.2,1.10162731]
[1728035689420,0.42065,2377.4,2377.3,0.42066]
[1728035689421,0.83694,2377.4,2377.3,0.42066]
[1728035689917,0.83694,2377.4,2377.3,0.84056]
[1728035690616,0.4163,2377.4,2377.3,0.84056]
[1728035690817,0.4163,2377.4,2377.3,1.68236]
[1728035691605,3.2078,2377.6,2377.3,1.68236]
[1728035691806,3.6126,2377.6,2377.3,1.2617]
[1728035692016,4.03322,2377.6,2377.3,1.2617]
[1728035692218,4.03322,2377.6,2377.4,0.42063]
[1728035693123,0.42063,2377.5,2377.4,0.42063]
[1728035693416,0.42064,2377.4,2377.3,1.2617]
[1728035693717,0.42064,2377.4,2377.3,0.4199]
[1728035694320,0.3906,2377.5,2377.3,0.4199]
[1728035694516,0.81123,2377.5,2377.3,0.84056]
[1728035696323,0.42064,2377.4,2377.3,0.4199]
[1728035696521,0.42064,2377.4,2377.3,0.84056]
[1728035697322,0.42064,2377.4,2377.3,0.4199]
[1728035698322,0.42064,2377.4,2377.2,1.94066]
[1728035698522,0.4122,2377.3,2377.2,2.35186]
[1728035700925,0.4122,2377.3,2377.2,1.9312]
[1728035701126,1.22296,2377.3,2377.2,1.52]
[1728035701328,0.8023,2377.3,2377.2,1.94068]
[1728035701524,0.42065,2377.4,2377.2,2.32958]